[Event "Early-Titled-Tuesday-Blitz-April-02-2024"]
[Site "Chess.com"]
[Date "2024.04.02"]
[Round "1"]
[White "szachmistrz2500"]
[Black "SAInt_666"]
[Result "0-1"]
[WhiteElo "2412"]
[BlackElo "2718"]
[TimeControl "180+1"]
[EndTime "8:10:09 PDT"]
[Termination "SAInt_666 won on time"]

1. d4 {[%clk 0:03:00.9]} 1... Nf6 {[%clk 0:02:59.1]} 2. c4 {[%clk 0:03:00.6]}
2... e6 {[%clk 0:02:59.5]} 3. Nf3 {[%clk 0:03:00.2]} 3... d5 {[%clk 0:02:59]} 4.
Nc3 {[%clk 0:02:59.9]} 4... Bb4 {[%clk 0:02:59]} 5. Bg5 {[%clk 0:02:59.1]} 5...
Nbd7 {[%clk 0:02:58.9]} 6. e3 {[%clk 0:02:58.8]} 6... c5 {[%clk 0:02:58.8]} 7.
cxd5 {[%clk 0:02:58.4]} 7... exd5 {[%clk 0:02:59.7]} 8. Be2 {[%clk 0:02:55.6]}
8... Qa5 {[%clk 0:02:58.5]} 9. O-O {[%clk 0:02:55.3]} 9... c4 {[%clk 0:02:58.7]}
10. Qc2 {[%clk 0:02:49.1]} 10... O-O {[%clk 0:02:58]} 11. Nd2 {[%clk 0:02:30.4]}
11... Re8 {[%clk 0:02:56.2]} 12. Bf3 {[%clk 0:02:28.7]} 12... Bxc3 {[%clk
0:02:47.8]} 13. bxc3 {[%clk 0:02:28.1]} 13... Ne4 {[%clk 0:02:35.3]} 14. Bxe4
{[%clk 0:02:25.9]} 14... dxe4 {[%clk 0:02:33.8]} 15. Bf4 {[%clk 0:02:26]} 15...
Qd5 {[%clk 0:02:32.4]} 16. f3 {[%clk 0:02:15.4]} 16... exf3 {[%clk 0:02:29.6]}
17. e4 {[%clk 0:02:15.4]} 17... Qc6 {[%clk 0:02:19.9]} 18. Rxf3 {[%clk
0:02:10.3]} 18... Nf6 {[%clk 0:02:16.3]} 19. d5 {[%clk 0:01:22.2]} 19... Qc5+
{[%clk 0:01:56.7]} 20. Be3 {[%clk 0:01:20.9]} 20... Qd6 {[%clk 0:01:49.9]} 21.
Nxc4 {[%clk 0:01:09.5]} 21... Qa6 {[%clk 0:01:47.3]} 22. Nd2 {[%clk 0:00:54.3]}
22... Bg4 {[%clk 0:01:46.3]} 23. Rf2 {[%clk 0:00:49.1]} 23... Bh5 {[%clk
0:01:45.3]} 24. Bd4 {[%clk 0:00:47.2]} 24... Ng4 {[%clk 0:01:39.4]} 25. Rf5
{[%clk 0:00:42.2]} 25... Bg6 {[%clk 0:01:39.1]} 26. Rg5 {[%clk 0:00:42.1]} 26...
Qe2 {[%clk 0:01:34.3]} 27. Qd1 {[%clk 0:00:32.2]} 27... Qxd1+ {[%clk 0:01:22.4]}
28. Rxd1 {[%clk 0:00:31.4]} 28... Nf6 {[%clk 0:01:22.9]} 29. Bxf6 {[%clk
0:00:24]} 29... gxf6 {[%clk 0:01:23.8]} 30. Rg3 {[%clk 0:00:23.9]} 30... Kf8
{[%clk 0:01:19.1]} 31. Rf1 {[%clk 0:00:21.2]} 31... Bxe4 {[%clk 0:01:08.5]} 32.
Nxe4 {[%clk 0:00:20.8]} 32... Rxe4 {[%clk 0:01:09.4]} 33. Rxf6 {[%clk
0:00:20.9]} 33... Rd8 {[%clk 0:01:10.1]} 34. Rgf3 {[%clk 0:00:20.8]} 34... Re7
{[%clk 0:01:06.4]} 35. R3f5 {[%clk 0:00:20.1]} 35... Kg7 {[%clk 0:01:05.6]} 36.
Kf2 {[%clk 0:00:19.3]} 36... Rxd5 {[%clk 0:01:04]} 37. Rxd5 {[%clk 0:00:17.3]}
37... Kxf6 {[%clk 0:01:03.9]} 38. Rd6+ {[%clk 0:00:17.5]} 38... Ke5 {[%clk
0:01:02.7]} 39. Rh6 {[%clk 0:00:17]} 39... f5 {[%clk 0:01:03.3]} 40. Ke3 {[%clk
0:00:15.5]} 40... Rc7 {[%clk 0:01:00.7]} 41. Kd3 {[%clk 0:00:15.5]} 41... Kf4
{[%clk 0:01:00.4]} 42. a4 {[%clk 0:00:14.2]} 42... Rd7+ {[%clk 0:00:59.7]} 43.
Kc2 {[%clk 0:00:14.1]} 43... Ke3 {[%clk 0:00:59]} 44. g3 {[%clk 0:00:14.2]}
44... Rf7 {[%clk 0:00:52.8]} 45. a5 {[%clk 0:00:13.3]} 45... a6 {[%clk
0:00:44.6]} 46. Rh4 {[%clk 0:00:11.8]} 46... Rd7 {[%clk 0:00:35.9]} 47. Kb3
{[%clk 0:00:11.7]} 47... Kf3 {[%clk 0:00:26.1]} 48. Rf4+ {[%clk 0:00:11.6]}
48... Kg2 {[%clk 0:00:26.7]} 49. Rxf5 {[%clk 0:00:11.3]} 49... Kxh2 {[%clk
0:00:26.8]} 50. Rg5 {[%clk 0:00:11.5]} 50... Kg2 {[%clk 0:00:25.6]} 51. Kb4
{[%clk 0:00:10.9]} 51... Rc7 {[%clk 0:00:26.1]} 52. c4 {[%clk 0:00:10.8]} 52...
Kf3 {[%clk 0:00:25.8]} 53. Kc3 {[%clk 0:00:09.4]} 53... Ke4 {[%clk 0:00:25.1]}
54. Rg8 {[%clk 0:00:09.1]} 54... Rf7 {[%clk 0:00:25]} 55. Re8+ {[%clk
0:00:08.5]} 55... Kf3 {[%clk 0:00:25.5]} 56. Rg8 {[%clk 0:00:08.2]} 56... Re7
{[%clk 0:00:25.7]} 57. Kd4 {[%clk 0:00:08.1]} 57... Rc7 {[%clk 0:00:26.4]} 58.
Kd5 {[%clk 0:00:07.6]} 58... Ke3 {[%clk 0:00:25]} 59. c5 {[%clk 0:00:07.5]}
59... Kd3 {[%clk 0:00:24.8]} 60. Kd6 {[%clk 0:00:07.5]} 60... Rc6+ {[%clk
0:00:25.4]} 61. Kd5 {[%clk 0:00:07.3]} 61... Rc7 {[%clk 0:00:26.1]} 62. Kd6
{[%clk 0:00:07.4]} 62... Rf7 {[%clk 0:00:25.3]} 63. Re8 {[%clk 0:00:05.8]} 63...
Kc4 {[%clk 0:00:24.9]} 64. Rb8 {[%clk 0:00:04.7]} 64... Rg7 {[%clk 0:00:15.8]}
65. c6 {[%clk 0:00:04.5]} 65... Rg6+ {[%clk 0:00:15.7]} 66. Ke5 {[%clk
0:00:03.7]} 66... bxc6 {[%clk 0:00:14.8]} 67. Rb6 {[%clk 0:00:03.4]} 67... Rxg3
{[%clk 0:00:12.7]} 68. Rxc6+ {[%clk 0:00:03.1]} 68... Kb5 {[%clk 0:00:13]} 69.
Rh6 {[%clk 0:00:03.3]} 69... Kxa5 {[%clk 0:00:11.9]} 70. Kd4 {[%clk 0:00:03.6]}
70... Rg7 {[%clk 0:00:11.5]} 71. Kc5 {[%clk 0:00:03.4]} 71... Rc7+ {[%clk
0:00:11.7]} 72. Kd4 {[%clk 0:00:03.7]} 72... Kb5 {[%clk 0:00:11.6]} 73. Kd3
{[%clk 0:00:02]} 73... a5 {[%clk 0:00:10.9]} 74. Rh5+ {[%clk 0:00:02.4]} 74...
Kb4 {[%clk 0:00:11.2]} 75. Rh1 {[%clk 0:00:03.3]} 75... a4 {[%clk 0:00:11.1]}
76. Rb1+ {[%clk 0:00:03.4]} 76... Ka5 {[%clk 0:00:11.8]} 77. Rb8 {[%clk
0:00:03.4]} 77... h5 {[%clk 0:00:07.6]} 78. Ra8+ {[%clk 0:00:02.8]} 78... Kb4
{[%clk 0:00:08]} 79. Kd4 {[%clk 0:00:03.1]} 79... Rh7 {[%clk 0:00:06.2]} 80.
Rb8+ {[%clk 0:00:02.7]} 80... Ka3 {[%clk 0:00:06.8]} 81. Kc3 {[%clk 0:00:03]}
81... h4 {[%clk 0:00:07.4]} 82. Rb1 {[%clk 0:00:02.2]} 82... Rc7+ {[%clk
0:00:08]} 83. Kd2 {[%clk 0:00:02.2]} 83... h3 {[%clk 0:00:08]} 84. Rh1 {[%clk
0:00:01.4]} 84... Rh7 {[%clk 0:00:08]} 85. Rh2 {[%clk 0:00:01]} 85... Kb3 {[%clk
0:00:07.7]} 86. Kc1 {[%clk 0:00:01.1]} 86... a3 {[%clk 0:00:08.2]} 87. Kb1
{[%clk 0:00:01.4]} 87... Rh4 {[%clk 0:00:06.4]} 88. Ka1 {[%clk 0:00:01.3]} 88...
Kb4 {[%clk 0:00:06.6]} 89. Ka2 {[%clk 0:00:01.3]} 89... Ka4 {[%clk 0:00:07.3]}
90. Rh1 {[%clk 0:00:01.5]} 90... h2 {[%clk 0:00:06.3]} 91. Ka1 {[%clk
0:00:01.8]} 91... Kb3 {[%clk 0:00:04.6]} 92. Kb1 {[%clk 0:00:02.1]} 92... Rh3
{[%clk 0:00:05]} 93. Ka1 {[%clk 0:00:02.1]} 93... Rg3 {[%clk 0:00:05.6]} 0-1

[Event "Early-Titled-Tuesday-Blitz-April-02-2024"]
[Site "Chess.com"]
[Date "2024.04.02"]
[Round "2"]
[White "Al_Shima"]
[Black "aljado"]
[Result "1-0"]
[WhiteElo "2445"]
[BlackElo "2140"]
[TimeControl "180+1"]
[EndTime "8:11:49 PDT"]
[Termination "Al_Shima won by resignation"]

1. e4 {[%clk 0:02:55.6]} 1... c5 {[%clk 0:02:59.8]} 2. Nf3 {[%clk 0:02:55.7]}
2... e6 {[%clk 0:02:59.9]} 3. c3 {[%clk 0:02:55.9]} 3... d5 {[%clk 0:02:58.7]}
4. exd5 {[%clk 0:02:56.8]} 4... exd5 {[%clk 0:02:58.1]} 5. d4 {[%clk 0:02:57.2]}
5... Nc6 {[%clk 0:02:58.2]} 6. Be3 {[%clk 0:02:56.6]} 6... cxd4 {[%clk
0:02:54.8]} 7. Nxd4 {[%clk 0:02:57.5]} 7... Nf6 {[%clk 0:02:54.4]} 8. Be2 {[%clk
0:02:51.8]} 8... Bd6 {[%clk 0:02:54]} 9. Nd2 {[%clk 0:02:50.6]} 9... O-O {[%clk
0:02:54.2]} 10. N2f3 {[%clk 0:02:49.2]} 10... Bf5 {[%clk 0:02:52.9]} 11. Nxf5
{[%clk 0:02:49.1]} 11... Ne4 {[%clk 0:02:47.4]} 12. Nxd6 {[%clk 0:02:45.2]}
12... Qxd6 {[%clk 0:02:47.3]} 13. O-O {[%clk 0:02:45]} 13... Rae8 {[%clk
0:02:43.7]} 14. Nd2 {[%clk 0:02:45.4]} 14... Nf6 {[%clk 0:02:41.7]} 15. Nb3
{[%clk 0:02:44.8]} 15... Ne5 {[%clk 0:02:39.4]} 16. Bc5 {[%clk 0:02:44.3]} 1-0

[Event "Early-Titled-Tuesday-Blitz-April-02-2024"]
[Site "Chess.com"]
[Date "2024.04.02"]
[Round "2"]
[White "SteinerPro12"]
[Black "ljuks68"]
[Result "1-0"]
[WhiteElo "2408"]
[BlackElo "2399"]
[TimeControl "180+1"]
[EndTime "8:12:38 PDT"]
[Termination "SteinerPro12 won by checkmate"]

1. e4 {[%clk 0:03:00.9]} 1... e6 {[%clk 0:02:54.5]} 2. Nf3 {[%clk 0:02:58.4]}
2... d5 {[%clk 0:02:50.4]} 3. e5 {[%clk 0:02:57.3]} 3... c5 {[%clk 0:02:49.5]}
4. b4 {[%clk 0:02:57.1]} 4... Nc6 {[%clk 0:02:49.3]} 5. bxc5 {[%clk 0:02:52.9]}
5... d4 {[%clk 0:02:49.2]} 6. Bd3 {[%clk 0:02:24.7]} 6... Bxc5 {[%clk
0:02:48.2]} 7. Ba3 {[%clk 0:02:23.8]} 7... Qa5 {[%clk 0:02:45.4]} 8. Bxc5 {[%clk
0:02:22.5]} 8... Qxc5 {[%clk 0:02:45.4]} 9. Qe2 {[%clk 0:02:17.2]} 9... Nge7
{[%clk 0:02:44.9]} 10. O-O {[%clk 0:02:15.9]} 10... Ng6 {[%clk 0:02:44.7]} 11.
Re1 {[%clk 0:02:16.6]} 11... O-O {[%clk 0:02:42.9]} 12. Qe4 {[%clk 0:02:08.2]}
12... b6 {[%clk 0:02:39.5]} 13. h4 {[%clk 0:02:02.6]} 13... h6 {[%clk
0:02:33.1]} 14. h5 {[%clk 0:02:01.9]} 14... Nge7 {[%clk 0:02:27.8]} 15. Qh7#
{[%clk 0:02:01.1]} 1-0

[Event "Early-Titled-Tuesday-Blitz-April-02-2024"]
[Site "Chess.com"]
[Date "2024.04.02"]
[Round "2"]
[White "bascheyaro"]
[Black "MasterKroket"]
[Result "1-0"]
[WhiteElo "2790"]
[BlackElo "2572"]
[TimeControl "180+1"]
[EndTime "8:12:55 PDT"]
[Termination "bascheyaro won by resignation"]

1. d4 {[%clk 0:03:00.9]} 1... Nf6 {[%clk 0:02:59.2]} 2. c4 {[%clk 0:03:01.1]}
2... g6 {[%clk 0:02:59.3]} 3. Nf3 {[%clk 0:03:01.2]} 3... Bg7 {[%clk 0:02:55.5]}
4. Bf4 {[%clk 0:03:01.1]} 4... O-O {[%clk 0:02:54.4]} 5. e3 {[%clk 0:03:01.6]}
5... c5 {[%clk 0:02:50.5]} 6. Nc3 {[%clk 0:03:01.5]} 6... cxd4 {[%clk
0:02:49.7]} 7. Nxd4 {[%clk 0:03:01.6]} 7... d5 {[%clk 0:02:48.1]} 8. h3 {[%clk
0:02:59.2]} 8... Nc6 {[%clk 0:02:37.5]} 9. Nxc6 {[%clk 0:02:57.3]} 9... bxc6
{[%clk 0:02:37.5]} 10. Be5 {[%clk 0:02:57.4]} 10... Be6 {[%clk 0:02:34]} 11.
cxd5 {[%clk 0:02:56.2]} 11... Nxd5 {[%clk 0:02:31.7]} 12. Bxg7 {[%clk
0:02:56.1]} 12... Kxg7 {[%clk 0:02:31.8]} 13. Qd4+ {[%clk 0:02:55]} 13... f6
{[%clk 0:02:31.5]} 14. Be2 {[%clk 0:02:52]} 14... Rb8 {[%clk 0:02:27.3]} 15. O-O
{[%clk 0:02:49.7]} 15... Rxb2 {[%clk 0:02:24.5]} 16. Nxd5 {[%clk 0:02:47]} 16...
Rxe2 {[%clk 0:02:23.3]} 17. Nf4 {[%clk 0:02:47.1]} 1-0

[Event "Early-Titled-Tuesday-Blitz-April-02-2024"]
[Site "Chess.com"]
[Date "2024.04.02"]
[Round "2"]
[White "zurzan"]
[Black "Attacker_2006"]
[Result "0-1"]
[WhiteElo "2071"]
[BlackElo "2432"]
[TimeControl "180+1"]
[EndTime "8:12:59 PDT"]
[Termination "Attacker_2006 won by resignation"]

1. c4 {[%clk 0:03:00.9]} 1... g6 {[%clk 0:02:58.8]} 2. g3 {[%clk 0:03:01.2]}
2... Bg7 {[%clk 0:02:59.3]} 3. Bg2 {[%clk 0:03:02.1]} 3... d6 {[%clk 0:03:00]}
4. Nc3 {[%clk 0:03:01.9]} 4... Nc6 {[%clk 0:03:00.6]} 5. d3 {[%clk 0:03:01.5]}
5... Bd7 {[%clk 0:03:01.1]} 6. e4 {[%clk 0:03:01.6]} 6... h5 {[%clk 0:03:00.7]}
7. Nge2 {[%clk 0:02:58]} 7... h4 {[%clk 0:03:00.6]} 8. Bf4 {[%clk 0:02:49.1]}
8... Qc8 {[%clk 0:02:59.8]} 9. Qd2 {[%clk 0:02:44.1]} 9... Bh3 {[%clk
0:02:59.7]} 10. Bf3 {[%clk 0:02:41]} 10... Ne5 {[%clk 0:02:57.3]} 11. Ng1 {[%clk
0:02:31.8]} 11... Nxf3+ {[%clk 0:02:55.8]} 12. Nxf3 {[%clk 0:02:31.8]} 12... Bg2
{[%clk 0:02:56.5]} 13. Rg1 {[%clk 0:02:29.4]} 13... Bxf3 {[%clk 0:02:56.6]} 14.
Qe3 {[%clk 0:02:29.9]} 14... Bg4 {[%clk 0:02:50]} 15. f3 {[%clk 0:02:29.5]}
15... Bd7 {[%clk 0:02:48.9]} 16. d4 {[%clk 0:02:27.6]} 16... e5 {[%clk
0:02:48.6]} 17. dxe5 {[%clk 0:02:24]} 17... dxe5 {[%clk 0:02:49.5]} 18. Bxe5
{[%clk 0:02:09.9]} 18... Bxe5 {[%clk 0:02:44.9]} 19. f4 {[%clk 0:02:10.8]} 19...
Bg7 {[%clk 0:02:44.4]} 20. O-O-O {[%clk 0:02:10.5]} 20... Ne7 {[%clk 0:02:44]}
21. Rgf1 {[%clk 0:02:03.6]} 21... hxg3 {[%clk 0:02:40.3]} 22. hxg3 {[%clk
0:02:03.3]} 22... c6 {[%clk 0:02:39.1]} 23. f5 {[%clk 0:01:59.4]} 23... Bh6
{[%clk 0:02:36.2]} 0-1

[Event "Early-Titled-Tuesday-Blitz-April-02-2024"]
[Site "Chess.com"]
[Date "2024.04.02"]
[Round "2"]
[White "WCM-Mexicana"]
[Black "secrethawk1"]
[Result "1-0"]
[WhiteElo "2172"]
[BlackElo "2411"]
[TimeControl "180+1"]
[EndTime "8:13:15 PDT"]
[Termination "WCM-Mexicana won by checkmate"]

1. d4 {[%clk 0:03:00.9]} 1... d5 {[%clk 0:02:57]} 2. c4 {[%clk 0:02:58.2]} 2...
dxc4 {[%clk 0:02:57.9]} 3. Nc3 {[%clk 0:02:58]} 3... Nf6 {[%clk 0:02:56.1]} 4.
e4 {[%clk 0:02:57.9]} 4... c5 {[%clk 0:02:53.8]} 5. d5 {[%clk 0:02:47.5]} 5...
Nbd7 {[%clk 0:02:48.9]} 6. Bxc4 {[%clk 0:02:44.9]} 6... a6 {[%clk 0:02:46.3]} 7.
a4 {[%clk 0:02:40.9]} 7... Ne5 {[%clk 0:02:41]} 8. Be2 {[%clk 0:02:39.7]} 8...
e6 {[%clk 0:02:39.4]} 9. f4 {[%clk 0:02:36.1]} 9... Ng6 {[%clk 0:02:34.8]} 10.
d6 {[%clk 0:02:32.6]} 10... e5 {[%clk 0:02:23.4]} 11. f5 {[%clk 0:02:18.1]}
11... Nf4 {[%clk 0:02:12.4]} 12. Bxf4 {[%clk 0:02:17.2]} 12... exf4 {[%clk
0:02:12.4]} 13. e5 {[%clk 0:02:17.5]} 13... Nd7 {[%clk 0:02:09]} 14. Nf3 {[%clk
0:02:17.6]} 14... Nb6 {[%clk 0:01:56.6]} 15. a5 {[%clk 0:02:15.4]} 15... Nd7
{[%clk 0:01:49.4]} 16. Nd5 {[%clk 0:02:13.6]} 16... Nxe5 {[%clk 0:01:45.4]} 17.
Nc7+ {[%clk 0:02:13.6]} 17... Kd7 {[%clk 0:01:44.1]} 18. Nxe5# {[%clk
0:02:13.8]} 1-0

[Event "Early-Titled-Tuesday-Blitz-April-02-2024"]
[Site "Chess.com"]
[Date "2024.04.02"]
[Round "2"]
[White "Road2GM3000"]
[Black "DonCiao"]
[Result "1-0"]
[WhiteElo "2425"]
[BlackElo "1997"]
[TimeControl "180+1"]
[EndTime "8:14:02 PDT"]
[Termination "Road2GM3000 won by checkmate"]

1. d4 {[%clk 0:02:58.4]} 1... Nf6 {[%clk 0:02:59]} 2. c4 {[%clk 0:02:56.8]} 2...
g6 {[%clk 0:02:58.6]} 3. Nc3 {[%clk 0:02:56.8]} 3... d5 {[%clk 0:02:58.8]} 4.
Bg5 {[%clk 0:02:56.6]} 4... Ne4 {[%clk 0:02:53.9]} 5. Bh4 {[%clk 0:02:56.5]}
5... Nxc3 {[%clk 0:02:53.8]} 6. bxc3 {[%clk 0:02:57.4]} 6... dxc4 {[%clk
0:02:53.9]} 7. e3 {[%clk 0:02:58.3]} 7... Be6 {[%clk 0:02:53.1]} 8. Nf3 {[%clk
0:02:58.4]} 8... Bg7 {[%clk 0:02:52.5]} 9. Qb1 {[%clk 0:02:59.1]} 9... Qd5
{[%clk 0:02:51.1]} 10. Ng5 {[%clk 0:02:51.6]} 10... Bd7 {[%clk 0:02:30.3]} 11.
e4 {[%clk 0:02:47.4]} 11... Qa5 {[%clk 0:02:28.5]} 12. Qb4 {[%clk 0:02:46.1]}
12... Qxb4 {[%clk 0:02:26.1]} 13. cxb4 {[%clk 0:02:47]} 13... Bxd4 {[%clk
0:02:23.6]} 14. O-O-O {[%clk 0:02:47.5]} 14... e5 {[%clk 0:02:18.6]} 15. Bxc4
{[%clk 0:02:47]} 15... O-O {[%clk 0:02:18.2]} 16. f4 {[%clk 0:02:45]} 16... a5
{[%clk 0:02:13.4]} 17. fxe5 {[%clk 0:02:28.9]} 17... Bxe5 {[%clk 0:02:10.6]} 18.
Nxf7 {[%clk 0:02:29.1]} 18... Rxf7 {[%clk 0:02:09.7]} 19. Rhf1 {[%clk
0:02:29.2]} 19... Kh8 {[%clk 0:01:35.4]} 20. Rxf7 {[%clk 0:02:25.1]} 20... axb4
{[%clk 0:01:25.1]} 21. Bg5 {[%clk 0:02:03.9]} 21... Ra3 {[%clk 0:01:17.3]} 22.
Rf8+ {[%clk 0:02:02.9]} 22... Kg7 {[%clk 0:01:16.2]} 23. Rg8# {[%clk 0:02:03.6]}
1-0

[Event "Early-Titled-Tuesday-Blitz-April-02-2024"]
[Site "Chess.com"]
[Date "2024.04.02"]
[Round "2"]
[White "lcmil"]
[Black "Art10ECHR"]
[Result "0-1"]
[WhiteElo "2287"]
[BlackElo "2527"]
[TimeControl "180+1"]
[EndTime "8:14:03 PDT"]
[Termination "Art10ECHR won by resignation"]

1. e4 {[%clk 0:02:57.9]} 1... c5 {[%clk 0:02:59.7]} 2. Nf3 {[%clk 0:02:57.5]}
2... e6 {[%clk 0:02:59.8]} 3. d4 {[%clk 0:02:57.8]} 3... cxd4 {[%clk 0:03:00.7]}
4. Nxd4 {[%clk 0:02:58.4]} 4... Nc6 {[%clk 0:03:01.3]} 5. Nc3 {[%clk 0:02:58.8]}
5... a6 {[%clk 0:03:01.4]} 6. Be3 {[%clk 0:02:58.9]} 6... Nf6 {[%clk 0:03:00.7]}
7. a3 {[%clk 0:02:56.4]} 7... Qc7 {[%clk 0:02:59.6]} 8. f4 {[%clk 0:02:55.5]}
8... d6 {[%clk 0:02:57.6]} 9. Be2 {[%clk 0:02:41.4]} 9... Be7 {[%clk 0:02:56.3]}
10. Nxc6 {[%clk 0:02:33]} 10... bxc6 {[%clk 0:02:53.9]} 11. g4 {[%clk
0:02:32.4]} 11... O-O {[%clk 0:02:53.3]} 12. Qd3 {[%clk 0:01:54.9]} 12... d5
{[%clk 0:02:52.4]} 13. e5 {[%clk 0:01:48.9]} 13... Nd7 {[%clk 0:02:52.9]} 14.
O-O-O {[%clk 0:01:34.3]} 14... Rb8 {[%clk 0:02:44.6]} 15. Nb1 {[%clk 0:00:54.9]}
15... c5 {[%clk 0:02:43.4]} 16. c4 {[%clk 0:00:50.2]} 16... d4 {[%clk
0:02:39.2]} 17. Bd2 {[%clk 0:00:48.9]} 17... Bb7 {[%clk 0:02:39.5]} 18. Rhg1
{[%clk 0:00:41.7]} 18... Qb6 {[%clk 0:02:38]} 19. Qc2 {[%clk 0:00:39.1]} 19...
Be4 {[%clk 0:02:34.9]} 0-1

[Event "Early-Titled-Tuesday-Blitz-April-02-2024"]
[Site "Chess.com"]
[Date "2024.04.02"]
[Round "2"]
[White "LeoLV10"]
[Black "Karina_Ivanova"]
[Result "1-0"]
[WhiteElo "2523"]
[BlackElo "2279"]
[TimeControl "180+1"]
[EndTime "8:14:06 PDT"]
[Termination "LeoLV10 won by checkmate"]

1. e4 {[%clk 0:03:00.9]} 1... c6 {[%clk 0:02:59.3]} 2. d4 {[%clk 0:03:00.6]}
2... d5 {[%clk 0:02:58.8]} 3. e5 {[%clk 0:03:00.4]} 3... Bf5 {[%clk 0:02:57.2]}
4. h4 {[%clk 0:02:59]} 4... h5 {[%clk 0:02:56.4]} 5. Bd3 {[%clk 0:02:59]} 5...
Bxd3 {[%clk 0:02:55.6]} 6. Qxd3 {[%clk 0:02:59.9]} 6... e6 {[%clk 0:02:55.2]} 7.
Nf3 {[%clk 0:02:59.4]} 7... Nd7 {[%clk 0:02:50.2]} 8. O-O {[%clk 0:02:54.5]}
8... c5 {[%clk 0:02:49.5]} 9. c3 {[%clk 0:02:52.5]} 9... Ne7 {[%clk 0:02:46.4]}
10. Bg5 {[%clk 0:02:49.7]} 10... Qb6 {[%clk 0:02:39.7]} 11. Nbd2 {[%clk
0:02:39.7]} 11... cxd4 {[%clk 0:02:22.4]} 12. cxd4 {[%clk 0:02:36.9]} 12...
O-O-O {[%clk 0:02:17.3]} 13. b4 {[%clk 0:02:13.9]} 13... Kb8 {[%clk 0:02:12.2]}
14. a4 {[%clk 0:02:10.2]} 14... Nc6 {[%clk 0:02:06.2]} 15. Bxd8 {[%clk
0:02:09.7]} 15... Qxd8 {[%clk 0:02:03.3]} 16. b5 {[%clk 0:02:07.2]} 16... Na5
{[%clk 0:02:01.2]} 17. Rfb1 {[%clk 0:02:04]} 17... b6 {[%clk 0:01:54.8]} 18. Nb3
{[%clk 0:02:02.9]} 18... Bb4 {[%clk 0:01:51.4]} 19. Nxa5 {[%clk 0:01:48.4]}
19... Bxa5 {[%clk 0:01:50.5]} 20. Rc1 {[%clk 0:01:48.6]} 20... Qe7 {[%clk
0:01:48.6]} 21. Rc6 {[%clk 0:01:48.1]} 21... Rc8 {[%clk 0:01:47.3]} 22. Rac1
{[%clk 0:01:48.4]} 22... Rxc6 {[%clk 0:01:46.8]} 23. bxc6 {[%clk 0:01:44.2]}
23... Nf8 {[%clk 0:01:45.8]} 24. c7+ {[%clk 0:01:44.6]} 24... Kc8 {[%clk
0:01:44.1]} 25. Qa6+ {[%clk 0:01:45.1]} 25... Kd7 {[%clk 0:01:41.7]} 26. c8=Q#
{[%clk 0:01:46]} 1-0

[Event "Early-Titled-Tuesday-Blitz-April-02-2024"]
[Site "Chess.com"]
[Date "2024.04.02"]
[Round "2"]
[White "Roosters19"]
[Black "joksijoksi"]
[Result "0-1"]
[WhiteElo "2291"]
[BlackElo "2531"]
[TimeControl "180+1"]
[EndTime "8:14:08 PDT"]
[Termination "joksijoksi won by resignation"]

1. d4 {[%clk 0:03:00.9]} 1... Nf6 {[%clk 0:02:57]} 2. Bg5 {[%clk 0:03:00.3]}
2... Ne4 {[%clk 0:02:55.8]} 3. Bf4 {[%clk 0:02:59.7]} 3... d5 {[%clk 0:02:56]}
4. e3 {[%clk 0:02:59.3]} 4... c5 {[%clk 0:02:54.8]} 5. Bd3 {[%clk 0:02:58.8]}
5... Nc6 {[%clk 0:02:49.4]} 6. c3 {[%clk 0:02:42]} 6... Qb6 {[%clk 0:02:38.2]}
7. Bxe4 {[%clk 0:02:37.7]} 7... dxe4 {[%clk 0:02:31.4]} 8. Qc2 {[%clk
0:02:34.7]} 8... cxd4 {[%clk 0:02:23.6]} 9. exd4 {[%clk 0:02:33.5]} 9... Bf5
{[%clk 0:02:20.4]} 10. Ne2 {[%clk 0:02:27.7]} 10... e6 {[%clk 0:02:20.6]} 11.
Ng3 {[%clk 0:02:24.5]} 11... Bg6 {[%clk 0:02:19.2]} 12. Be3 {[%clk 0:02:11.8]}
12... Qb5 {[%clk 0:01:50.3]} 13. Na3 {[%clk 0:02:07.8]} 13... Bxa3 {[%clk
0:01:43.3]} 14. bxa3 {[%clk 0:02:06.5]} 14... Qd3 {[%clk 0:01:38]} 15. Qxd3
{[%clk 0:02:01.3]} 15... exd3 {[%clk 0:01:38.9]} 16. Kd2 {[%clk 0:01:59.5]}
16... Na5 {[%clk 0:01:37.3]} 17. h4 {[%clk 0:01:42.8]} 17... h5 {[%clk
0:01:35.9]} 18. f3 {[%clk 0:01:41.1]} 18... Nc4+ {[%clk 0:01:35.5]} 19. Kc1
{[%clk 0:01:36.9]} 19... Nxe3 {[%clk 0:01:36]} 0-1

[Event "Early-Titled-Tuesday-Blitz-April-02-2024"]
[Site "Chess.com"]
[Date "2024.04.02"]
[Round "2"]
[White "Zkid"]
[Black "ccccvhhhj"]
[Result "1-0"]
[WhiteElo "2899"]
[BlackElo "2407"]
[TimeControl "180+1"]
[EndTime "8:14:10 PDT"]
[Termination "Zkid won by checkmate"]

1. e4 {[%clk 0:03:00.9]} 1... e6 {[%clk 0:03:00.1]} 2. d4 {[%clk 0:02:59.9]}
2... d5 {[%clk 0:03:01]} 3. Nc3 {[%clk 0:02:58.8]} 3... Bb4 {[%clk 0:03:00.9]}
4. exd5 {[%clk 0:02:57.8]} 4... exd5 {[%clk 0:03:01.8]} 5. Bd3 {[%clk
0:02:57.9]} 5... Nf6 {[%clk 0:03:01.9]} 6. Ne2 {[%clk 0:02:55.8]} 6... Bg4
{[%clk 0:03:01.6]} 7. O-O {[%clk 0:02:54.1]} 7... c6 {[%clk 0:03:01.8]} 8. f3
{[%clk 0:02:52.5]} 8... Bh5 {[%clk 0:03:01.7]} 9. Nf4 {[%clk 0:02:52.3]} 9...
Bg6 {[%clk 0:03:01.6]} 10. Re1+ {[%clk 0:02:52]} 10... Be7 {[%clk 0:03:01.8]}
11. Nxg6 {[%clk 0:02:47.8]} 11... hxg6 {[%clk 0:03:02.7]} 12. Qe2 {[%clk
0:02:48]} 12... Nbd7 {[%clk 0:03:00.8]} 13. Bf4 {[%clk 0:02:44.2]} 13... Kf8
{[%clk 0:03:01.3]} 14. Qf2 {[%clk 0:02:22.7]} 14... Nh5 {[%clk 0:02:59.4]} 15.
Bd2 {[%clk 0:02:20.9]} 15... Bd6 {[%clk 0:02:59]} 16. g3 {[%clk 0:02:16.2]}
16... Qc7 {[%clk 0:02:58.8]} 17. f4 {[%clk 0:02:13.9]} 17... g5 {[%clk
0:02:50.6]} 18. fxg5 {[%clk 0:02:01.8]} 18... Nxg3 {[%clk 0:02:47.2]} 19. Bg6
{[%clk 0:01:46.9]} 19... Nb6 {[%clk 0:02:31]} 20. Re3 {[%clk 0:01:21.6]} 20...
Ne4 {[%clk 0:02:19.6]} 21. Nxe4 {[%clk 0:01:18.7]} 21... Bxh2+ {[%clk 0:02:20]}
22. Kg2 {[%clk 0:01:14.4]} 22... dxe4 {[%clk 0:02:14.7]} 23. Rf1 {[%clk
0:01:10.6]} 23... Kg8 {[%clk 0:02:15]} 24. Bxf7+ {[%clk 0:01:10]} 24... Kh7
{[%clk 0:02:09.3]} 25. Qh4# {[%clk 0:01:09.3]} 1-0